[Event "Titled Tuesday Blitz September 14 2021"]
[White "Kobalia, Mikhail"]
[Black "Nesterov, Arseniy"]
[WhiteFideId "4119150"]
[BlackFideId "24198455"]
[WhiteElo "2626"]
[BlackElo "2494"]
[Result "1-0"]
[Round "05"]
[TimeControl "180+1"]
[Date "2021.09.15"]
[WhiteClock "0:00:17"]
[BlackClock "0:00:03"]

1. e4 {[%clk 0:03:00]}  e5 {[%clk 0:03:00]} 2. Nf3 {[%clk 0:03:00]}  Nc6 {[%clk 0:03:00]} 3. Bb5 {[%clk 0:03:00]}  a6 {[%clk 0:03:00]} 4. Ba4 {[%clk 0:03:00]}  b5 {[%clk 0:03:00]} 5. Bb3 {[%clk 0:02:59]}  Na5 {[%clk 0:03:01]} 6. O-O {[%clk 0:02:58]}  d6 {[%clk 0:03:01]} 7. d4 {[%clk 0:02:56]}  exd4 {[%clk 0:03:02]} 8. Nxd4 {[%clk 0:02:54]}  Bb7 {[%clk 0:03:02]} 9. Bd2 {[%clk 0:02:42]}  Nxb3 {[%clk 0:03:00]} 10. Nxb3 {[%clk 0:02:42]}  Rb8 {[%clk 0:03:00]} 11. a4 {[%clk 0:02:40]}  bxa4 {[%clk 0:02:59]} 12. Rxa4 {[%clk 0:02:39]}  Nf6 {[%clk 0:02:59]} 13. Nc3 {[%clk 0:02:26]}  Be7 {[%clk 0:02:56]} 14. Nd4 {[%clk 0:02:26]}  O-O {[%clk 0:02:53]} 15. Nf5 {[%clk 0:02:25]}  Qd7 {[%clk 0:02:50]} 16. Qf3 {[%clk 0:02:23]}  Bd8 {[%clk 0:02:32]} 17. Qg3 {[%clk 0:02:21]}  g6 {[%clk 0:02:32]} 18. Rd4 {[%clk 0:02:00]}  Qe6 {[%clk 0:02:17]} 19. Bh6 {[%clk 0:01:52]}  Nh5 {[%clk 0:02:11]} 20. Qf3 {[%clk 0:01:47]}  Re8 {[%clk 0:02:00]} 21. Ne3 {[%clk 0:01:41]}  Bf6 {[%clk 0:01:53]} 22. Ra4 {[%clk 0:01:13]}  Bxc3 {[%clk 0:01:49]} 23. bxc3 {[%clk 0:01:13]}  Bxe4 {[%clk 0:01:48]} 24. Qe2 {[%clk 0:01:08]}  Bc6 {[%clk 0:01:25]} 25. Rb4 {[%clk 0:00:58]}  Bb5 {[%clk 0:00:49]} 26. c4 {[%clk 0:00:57]}  Bc6 {[%clk 0:00:49]} 27. Rxb8 {[%clk 0:00:49]}  Rxb8 {[%clk 0:00:50]} 28. c5 {[%clk 0:00:49]}  Bb5 {[%clk 0:00:38]} 29. c4 {[%clk 0:00:48]}  Bc6 {[%clk 0:00:38]} 30. cxd6 {[%clk 0:00:48]}  cxd6 {[%clk 0:00:39]} 31. Qa2 {[%clk 0:00:44]}  Ra8 {[%clk 0:00:30]} 32. Rd1 {[%clk 0:00:40]}  Nf6 {[%clk 0:00:26]} 33. Qa1 {[%clk 0:00:35]}  Ne8 {[%clk 0:00:14]} 34. h3 {[%clk 0:00:31]}  f6 {[%clk 0:00:15]} 35. Re1 {[%clk 0:00:29]}  Qf7 {[%clk 0:00:13]} 36. Qa5 {[%clk 0:00:27]}  Qc7 {[%clk 0:00:12]} 37. Qa3 {[%clk 0:00:25]}  a5 {[%clk 0:00:08]} 38. c5 {[%clk 0:00:24]}  d5 {[%clk 0:00:07]} 39. Nc2 {[%clk 0:00:23]}  a4 {[%clk 0:00:03]} 40. Nd4 {[%clk 0:00:22]}  Qd7 {[%clk 0:00:04]} 41. Re6 {[%clk 0:00:20]}  Rc8 {[%clk 0:00:01]} 42. Qe3 {[%clk 0:00:20]}  Nc7 {[%clk 0:00:01]} 43. Re7 {[%clk 0:00:20]}  a3 {[%clk 0:00:02]} 44. Rxd7 {[%clk 0:00:19]}  Bxd7 {[%clk 0:00:02]} 45. Qe7 {[%clk 0:00:19]}  Ne8 {[%clk 0:00:03]} 46. Qf8# {[%clk 0:00:17]} 1-0


[Site "https://www.chess.com"]

[Event "Titled Tuesday Blitz September 14 2021"]
[White "Lashkin, Jegor"]
[Black "Perez Gormaz, Matias"]
[WhiteFideId "13907808"]
[BlackFideId "3406342"]
[WhiteElo "2293"]
[BlackElo "2352"]
[Result "1-0"]
[Round "05"]
[TimeControl "180+1"]
[Date "2021.09.15"]
[WhiteClock "0:00:47"]
[BlackClock "0:00:02"]

1. d4 {[%clk 0:03:00]}  Nf6 {[%clk 0:02:59]} 2. c4 {[%clk 0:03:00]}  e6 {[%clk 0:02:59]} 3. Nf3 {[%clk 0:03:01]}  d5 {[%clk 0:02:59]} 4. Nc3 {[%clk 0:03:01]}  Be7 {[%clk 0:02:59]} 5. Bf4 {[%clk 0:03:00]}  O-O {[%clk 0:02:59]} 6. e3 {[%clk 0:03:01]}  b6 {[%clk 0:02:59]} 7. Bd3 {[%clk 0:03:01]}  dxc4 {[%clk 0:02:55]} 8. Bxc4 {[%clk 0:03:02]}  Ba6 {[%clk 0:02:55]} 9. Bxa6 {[%clk 0:03:01]}  Nxa6 {[%clk 0:02:56]} 10. Qa4 {[%clk 0:03:01]}  Qc8 {[%clk 0:02:56]} 11. O-O {[%clk 0:03:01]}  c5 {[%clk 0:02:55]} 12. Nb5 {[%clk 0:02:55]}  Rd8 {[%clk 0:02:46]} 13. Rac1 {[%clk 0:02:54]}  Qb7 {[%clk 0:02:46]} 14. a3 {[%clk 0:02:54]}  cxd4 {[%clk 0:01:59]} 15. exd4 {[%clk 0:02:54]}  Nd5 {[%clk 0:01:54]} 16. Be5 {[%clk 0:02:51]}  Rac8 {[%clk 0:01:52]} 17. h3 {[%clk 0:02:48]}  h6 {[%clk 0:01:29]} 18. Bg3 {[%clk 0:02:44]}  Bf8 {[%clk 0:01:01]} 19. Ne5 {[%clk 0:02:43]}  Be7 {[%clk 0:00:51]} 20. Nc4 {[%clk 0:02:36]}  Rc6 {[%clk 0:00:37]} 21. Nxa7 {[%clk 0:02:36]}  Rxc4 {[%clk 0:00:33]} 22. Qxc4 {[%clk 0:02:36]}  Qxa7 {[%clk 0:00:33]} 23. Qb5 {[%clk 0:02:29]}  Qb7 {[%clk 0:00:32]} 24. Rc2 {[%clk 0:02:28]}  Nac7 {[%clk 0:00:27]} 25. Qc4 {[%clk 0:02:22]}  b5 {[%clk 0:00:26]} 26. Qe2 {[%clk 0:02:21]}  b4 {[%clk 0:00:25]} 27. Qf3 {[%clk 0:02:20]}  Nb5 {[%clk 0:00:23]} 28. Rd1 {[%clk 0:02:12]}  bxa3 {[%clk 0:00:22]} 29. bxa3 {[%clk 0:02:12]}  Rc8 {[%clk 0:00:21]} 30. Rb2 {[%clk 0:02:10]}  Qa6 {[%clk 0:00:17]} 31. Qd3 {[%clk 0:02:02]}  Ndc3 {[%clk 0:00:15]} 32. Re1 {[%clk 0:01:45]}  Qc6 {[%clk 0:00:11]} 33. d5 {[%clk 0:01:40]}  Qxd5 {[%clk 0:00:10]} 34. Qxd5 {[%clk 0:01:38]}  exd5 {[%clk 0:00:08]} 35. Rxe7 {[%clk 0:01:38]}  Nxa3 {[%clk 0:00:09]} 36. Rbb7 {[%clk 0:01:31]}  Rf8 {[%clk 0:00:08]} 37. Be5 {[%clk 0:01:24]}  Ne4 {[%clk 0:00:06]} 38. f3 {[%clk 0:01:21]}  Nc5 {[%clk 0:00:06]} 39. Ra7 {[%clk 0:01:16]}  Nc4 {[%clk 0:00:06]} 40. Bd4 {[%clk 0:01:13]}  Nb3 {[%clk 0:00:04]} 41. Bf2 {[%clk 0:01:09]}  Nbd2 {[%clk 0:00:04]} 42. Red7 {[%clk 0:01:07]}  Nb3 {[%clk 0:00:04]} 43. Rxd5 {[%clk 0:01:05]}  Rc8 {[%clk 0:00:03]} 44. Rdd7 {[%clk 0:01:03]}  Rf8 {[%clk 0:00:03]} 45. Rac7 {[%clk 0:01:02]}  Ne5 {[%clk 0:00:03]} 46. Rd5 {[%clk 0:01:02]}  Ng6 {[%clk 0:00:03]} 47. Rb5 {[%clk 0:01:00]}  Na1 {[%clk 0:00:01]} 48. Bd4 {[%clk 0:00:55]}  Ra8 {[%clk 0:00:02]} 49. Rc1 {[%clk 0:00:52]}  Nf4 {[%clk 0:00:01]} 50. Rxa1 {[%clk 0:00:50]}  Rd8 {[%clk 0:00:02]} 51. Be3 {[%clk 0:00:49]}  Ne2+ {[%clk 0:00:02]} 52. Kh2 {[%clk 0:00:48]}  Nc3 {[%clk 0:00:03]} 53. Rba5 {[%clk 0:00:47]}  Re8 {[%clk 0:00:01]} 54. Ra8 {[%clk 0:00:46]}  Rxa8 {[%clk 0:00:01]} 55. Rxa8+ {[%clk 0:00:47]}  Kh7 {[%clk 0:00:02]} 56. Ra7 {[%clk 0:00:47]} 1-0


[Site "https://www.chess.com"]

[Event "Titled Tuesday Blitz September 14 2021"]
[White "Maghsoodloo, Parham"]
[Black "Krysa, Leandro"]
[WhiteFideId "12539929"]
[BlackFideId "116807"]
[WhiteElo "2601"]
[BlackElo "2490"]
[Result "0-1"]
[Round "05"]
[TimeControl "180+1"]
[Date "2021.09.15"]
[WhiteClock "0:00:02"]
[BlackClock "0:00:09"]

1. e4 {[%clk 0:01:42]}  c5 {[%clk 0:02:58]} 2. Nf3 {[%clk 0:01:42]}  Nc6 {[%clk 0:02:58]} 3. Bb5 {[%clk 0:01:42]}  g6 {[%clk 0:02:57]} 4. O-O {[%clk 0:01:42]}  Bg7 {[%clk 0:02:57]} 5. Bxc6 {[%clk 0:01:42]}  bxc6 {[%clk 0:02:56]} 6. d3 {[%clk 0:01:42]}  d6 {[%clk 0:02:55]} 7. h3 {[%clk 0:01:41]}  e5 {[%clk 0:02:54]} 8. c3 {[%clk 0:01:41]}  Ne7 {[%clk 0:02:51]} 9. Re1 {[%clk 0:01:37]}  O-O {[%clk 0:02:48]} 10. d4 {[%clk 0:01:37]}  cxd4 {[%clk 0:02:44]} 11. cxd4 {[%clk 0:01:38]}  exd4 {[%clk 0:02:41]} 12. Nxd4 {[%clk 0:01:34]}  c5 {[%clk 0:02:17]} 13. Nb5 {[%clk 0:01:10]}  d5 {[%clk 0:02:12]} 14. e5 {[%clk 0:01:09]}  Be6 {[%clk 0:01:53]} 15. Bg5 {[%clk 0:01:03]}  h6 {[%clk 0:01:52]} 16. Bxe7 {[%clk 0:00:58]}  Qxe7 {[%clk 0:01:51]} 17. f4 {[%clk 0:00:54]}  Rad8 {[%clk 0:01:36]} 18. N1c3 {[%clk 0:00:51]}  f6 {[%clk 0:01:22]} 19. Qd3 {[%clk 0:00:34]}  fxe5 {[%clk 0:01:16]} 20. Qxg6 {[%clk 0:00:32]}  e4 {[%clk 0:00:53]} 21. Rad1 {[%clk 0:00:24]}  a6 {[%clk 0:00:41]} 22. Nc7 {[%clk 0:00:24]}  Rf6 {[%clk 0:00:37]} 23. N3xd5 {[%clk 0:00:13]}  Bxd5 {[%clk 0:00:32]} 24. Qh5 {[%clk 0:00:07]}  Bf7 {[%clk 0:00:27]} 25. Rxd8+ {[%clk 0:00:07]}  Qxd8 {[%clk 0:00:27]} 26. Qxc5 {[%clk 0:00:08]}  Rxf4 {[%clk 0:00:25]} 27. Kh1 {[%clk 0:00:07]}  Qd2 {[%clk 0:00:23]} 28. Rg1 {[%clk 0:00:06]}  e3 {[%clk 0:00:17]} 29. Qe7 {[%clk 0:00:02]}  e2 {[%clk 0:00:14]} 30. Ne6 {[%clk 0:00:02]}  Bxe6 {[%clk 0:00:13]} 31. Qxe6+ {[%clk 0:00:03]}  Kh7 {[%clk 0:00:13]} 32. Qxa6 {[%clk 0:00:02]}  Re4 {[%clk 0:00:09]} 0-1


[Site "https://www.chess.com"]

[Event "Titled Tuesday Blitz September 14 2021"]
[White "Nimrod_Veinberg"]
[Black "Sviridov_Valery"]
[WhiteElo "2745"]
[BlackElo "2960"]
[Result "0-1"]
[Round "05"]
[TimeControl "180+1"]
[Date "2021.09.15"]
[WhiteClock "0:00:01"]
[BlackClock "0:00:27"]

1. d4 {[%clk 0:03:00]}  g6 {[%clk 0:02:58]} 2. e4 {[%clk 0:02:57]}  Bg7 {[%clk 0:02:58]} 3. Nc3 {[%clk 0:02:57]}  d6 {[%clk 0:02:58]} 4. Nf3 {[%clk 0:02:57]}  a6 {[%clk 0:02:59]} 5. a4 {[%clk 0:02:56]}  b6 {[%clk 0:02:59]} 6. Bd3 {[%clk 0:02:55]}  e6 {[%clk 0:02:58]} 7. O-O {[%clk 0:02:55]}  Bb7 {[%clk 0:02:58]} 8. Re1 {[%clk 0:02:56]}  Nd7 {[%clk 0:02:59]} 9. Ne2 {[%clk 0:02:55]}  Ngf6 {[%clk 0:02:54]} 10. Ng3 {[%clk 0:02:55]}  e5 {[%clk 0:02:55]} 11. c3 {[%clk 0:02:53]}  O-O {[%clk 0:02:54]} 12. d5 {[%clk 0:02:48]}  a5 {[%clk 0:02:50]} 13. h3 {[%clk 0:02:39]}  h6 {[%clk 0:02:45]} 14. Be3 {[%clk 0:02:37]}  Nc5 {[%clk 0:02:41]} 15. Bc2 {[%clk 0:02:37]}  Kh7 {[%clk 0:02:39]} 16. b4 {[%clk 0:02:36]}  Ncd7 {[%clk 0:02:39]} 17. Nd2 {[%clk 0:02:35]}  h5 {[%clk 0:02:35]} 18. Bg5 {[%clk 0:02:10]}  Bh6 {[%clk 0:02:33]} 19. Nf3 {[%clk 0:02:11]}  Bxg5 {[%clk 0:02:32]} 20. Nxg5+ {[%clk 0:02:11]}  Kg7 {[%clk 0:02:33]} 21. h4 {[%clk 0:02:12]}  Nh7 {[%clk 0:02:23]} 22. Qd2 {[%clk 0:02:11]}  Qe7 {[%clk 0:02:19]} 23. Nf1 {[%clk 0:02:01]}  Nxg5 {[%clk 0:02:09]} 24. Qxg5 {[%clk 0:01:43]}  Qxg5 {[%clk 0:01:58]} 25. hxg5 {[%clk 0:01:44]}  f6 {[%clk 0:01:58]} 26. gxf6+ {[%clk 0:01:43]}  Rxf6 {[%clk 0:01:54]} 27. Ne3 {[%clk 0:01:44]}  Kh6 {[%clk 0:01:52]} 28. f3 {[%clk 0:01:42]}  Rff8 {[%clk 0:01:43]} 29. Bd3 {[%clk 0:01:39]}  Ba6 {[%clk 0:01:41]} 30. Bb5 {[%clk 0:01:30]}  Bxb5 {[%clk 0:01:32]} 31. axb5 {[%clk 0:01:31]}  Ra7 {[%clk 0:01:31]} 32. Ra4 {[%clk 0:01:31]}  Rb7 {[%clk 0:00:41]} 33. bxa5 {[%clk 0:01:31]}  Nc5 {[%clk 0:00:40]} 34. Ra3 {[%clk 0:01:24]}  bxa5 {[%clk 0:00:40]} 35. Rxa5 {[%clk 0:01:25]}  Nb3 {[%clk 0:00:40]} 36. Ra3 {[%clk 0:00:50]}  Rxb5 {[%clk 0:00:40]} 37. Rb1 {[%clk 0:00:50]}  Rfb8 {[%clk 0:00:40]} 38. c4 {[%clk 0:00:32]}  R5b7 {[%clk 0:00:37]} 39. Kf2 {[%clk 0:00:16]}  Kg5 {[%clk 0:00:37]} 40. Ra6 {[%clk 0:00:10]}  Kf6 {[%clk 0:00:35]} 41. Rc6 {[%clk 0:00:03]}  Na5 {[%clk 0:00:35]} 42. Rxb7 {[%clk 0:00:02]}  Rxb7 {[%clk 0:00:36]} 43. Ra6 {[%clk 0:00:03]}  Nb3 {[%clk 0:00:36]} 44. Ra8 {[%clk 0:00:03]}  Nd4 {[%clk 0:00:35]} 45. Rf8+ {[%clk 0:00:03]}  Kg7 {[%clk 0:00:35]} 46. Ra8 {[%clk 0:00:04]}  Rb2+ {[%clk 0:00:35]} 47. Kg1 {[%clk 0:00:05]}  Ne2+ {[%clk 0:00:34]} 48. Kh2 {[%clk 0:00:05]}  Nf4 {[%clk 0:00:35]} 49. Ra7 {[%clk 0:00:05]}  Re2 {[%clk 0:00:35]} 50. Rxc7+ {[%clk 0:00:06]}  Kh6 {[%clk 0:00:36]} 51. c5 {[%clk 0:00:05]}  dxc5 {[%clk 0:00:34]} 52. Nc4 {[%clk 0:00:05]}  Rxg2+ {[%clk 0:00:34]} 53. Kh1 {[%clk 0:00:06]}  h4 {[%clk 0:00:29]} 54. Nxe5 {[%clk 0:00:06]}  h3 {[%clk 0:00:30]} 55. Ng4+ {[%clk 0:00:05]}  Kg5 {[%clk 0:00:29]} 56. Rxc5 {[%clk 0:00:05]}  Ne2 {[%clk 0:00:27]} 57. d6+ {[%clk 0:00:01]}  Kh4 {[%clk 0:00:27]} 0-1


[Site "https://www.chess.com"]

[Event "Titled Tuesday Blitz September 14 2021"]
[White "Suvorov, Alexander"]
[Black "Goltsev, Dmitry"]
[WhiteFideId "12977063"]
[BlackFideId "24176710"]
[WhiteElo "2221"]
[BlackElo "2334"]
[Result "0-1"]
[Round "05"]
[TimeControl "180+1"]
[Date "2021.09.15"]
[WhiteClock "0:00:01"]
[BlackClock "0:00:59"]

1. d4 {[%clk 0:01:07]}  Nf6 {[%clk 0:02:58]} 2. c4 {[%clk 0:01:07]}  e6 {[%clk 0:02:58]} 3. Nc3 {[%clk 0:01:08]}  Bb4 {[%clk 0:02:58]} 4. e3 {[%clk 0:01:08]}  c5 {[%clk 0:02:56]} 5. Ne2 {[%clk 0:01:07]}  d5 {[%clk 0:02:54]} 6. a3 {[%clk 0:01:07]}  Ba5 {[%clk 0:02:52]} 7. dxc5 {[%clk 0:01:07]}  dxc4 {[%clk 0:02:50]} 8. Qxd8+ {[%clk 0:01:07]}  Bxd8 {[%clk 0:02:51]} 9. Ng3 {[%clk 0:01:07]}  Nbd7 {[%clk 0:02:49]} 10. Bxc4 {[%clk 0:01:05]}  Nxc5 {[%clk 0:02:49]} 11. b4 {[%clk 0:01:05]}  Ncd7 {[%clk 0:02:48]} 12. O-O {[%clk 0:00:58]}  a6 {[%clk 0:02:48]} 13. Nce4 {[%clk 0:00:54]}  Bc7 {[%clk 0:02:44]} 14. Bb2 {[%clk 0:00:52]}  Ke7 {[%clk 0:02:43]} 15. Rac1 {[%clk 0:00:51]}  Be5 {[%clk 0:02:41]} 16. Bxe5 {[%clk 0:00:43]}  Nxe5 {[%clk 0:02:42]} 17. Be2 {[%clk 0:00:43]}  Nc6 {[%clk 0:02:34]} 18. Nc5 {[%clk 0:00:39]}  Rd8 {[%clk 0:02:31]} 19. Rfd1 {[%clk 0:00:35]}  Rxd1+ {[%clk 0:02:30]} 20. Rxd1 {[%clk 0:00:36]}  Nd5 {[%clk 0:02:30]} 21. Bf3 {[%clk 0:00:34]}  b6 {[%clk 0:02:27]} 22. Bxd5 {[%clk 0:00:32]}  exd5 {[%clk 0:02:28]} 23. Nb3 {[%clk 0:00:31]}  Be6 {[%clk 0:02:27]} 24. Rc1 {[%clk 0:00:29]}  Rc8 {[%clk 0:02:24]} 25. Ne2 {[%clk 0:00:28]}  Kd6 {[%clk 0:02:21]} 26. Ned4 {[%clk 0:00:20]}  Nxd4 {[%clk 0:02:16]} 27. exd4 {[%clk 0:00:21]}  Rc4 {[%clk 0:02:11]} 28. Kf1 {[%clk 0:00:22]}  a5 {[%clk 0:02:05]} 29. bxa5 {[%clk 0:00:23]}  bxa5 {[%clk 0:02:06]} 30. Ke2 {[%clk 0:00:22]}  Ra4 {[%clk 0:02:02]} 31. Ra1 {[%clk 0:00:17]}  Bd7 {[%clk 0:01:58]} 32. Ke3 {[%clk 0:00:16]}  Bb5 {[%clk 0:01:50]} 33. h4 {[%clk 0:00:12]}  h5 {[%clk 0:01:37]} 34. g3 {[%clk 0:00:10]}  g6 {[%clk 0:01:37]} 35. Nc5 {[%clk 0:00:10]}  Rc4 {[%clk 0:01:36]} 36. Nb7+ {[%clk 0:00:11]}  Ke6 {[%clk 0:01:36]} 37. Nxa5 {[%clk 0:00:12]}  Rc2 {[%clk 0:01:36]} 38. Kf4 {[%clk 0:00:12]}  Rxf2+ {[%clk 0:01:35]} 39. Kg5 {[%clk 0:00:13]}  Rf3 {[%clk 0:01:33]} 40. Nb7 {[%clk 0:00:12]}  Rxg3+ {[%clk 0:01:31]} 41. Kh6 {[%clk 0:00:13]}  Rg4 {[%clk 0:01:31]} 42. Nc5+ {[%clk 0:00:11]}  Kd6 {[%clk 0:01:30]} 43. a4 {[%clk 0:00:12]}  Bc6 {[%clk 0:01:29]} 44. a5 {[%clk 0:00:11]}  Rxd4 {[%clk 0:01:29]} 45. Nb3 {[%clk 0:00:07]}  Rxh4 {[%clk 0:01:28]} 46. Kg7 {[%clk 0:00:07]}  Rb4 {[%clk 0:01:25]} 47. Nd2 {[%clk 0:00:07]}  h4 {[%clk 0:01:25]} 48. Kxf7 {[%clk 0:00:06]}  g5 {[%clk 0:01:26]} 49. Nf3 {[%clk 0:00:05]}  Rg4 {[%clk 0:01:11]} 50. Kg6 {[%clk 0:00:03]}  h3 {[%clk 0:01:11]} 51. Nxg5 {[%clk 0:00:03]}  h2 {[%clk 0:01:11]} 52. Rh1 {[%clk 0:00:04]}  Rg2 {[%clk 0:01:09]} 53. Kf5 {[%clk 0:00:03]}  d4 {[%clk 0:01:09]} 54. Ne4+ {[%clk 0:00:04]}  Kc7 {[%clk 0:01:02]} 55. a6 {[%clk 0:00:04]}  Kb6 {[%clk 0:01:02]} 56. Kf4 {[%clk 0:00:04]}  d3 {[%clk 0:01:00]} 57. Kf3 {[%clk 0:00:02]}  Re2 {[%clk 0:01:00]} 58. a7 {[%clk 0:00:01]}  Bxe4+ {[%clk 0:00:59]} 59. Kf4 {[%clk 0:00:01]}  Bxh1 {[%clk 0:00:59]} 0-1


[Site "https://www.chess.com"]

[Event "Titled Tuesday Blitz September 14 2021"]
[White "Svane, Rasmus"]
[Black "Timmermans, Mark"]
[WhiteFideId "4657101"]
[BlackFideId "1026399"]
[WhiteElo "2643"]
[BlackElo "2460"]
[Result "1-0"]
[Round "05"]
[TimeControl "180+1"]
[Date "2021.09.15"]
[WhiteClock "0:01:05"]
[BlackClock "0:00:33"]

1. Nf3 {[%clk 0:03:00]}  Nf6 {[%clk 0:02:58]} 2. g3 {[%clk 0:03:00]}  e6 {[%clk 0:02:56]} 3. Bg2 {[%clk 0:03:00]}  d5 {[%clk 0:02:57]} 4. O-O {[%clk 0:03:00]}  Be7 {[%clk 0:02:57]} 5. c4 {[%clk 0:03:00]}  O-O {[%clk 0:02:58]} 6. b3 {[%clk 0:03:00]}  c5 {[%clk 0:02:58]} 7. cxd5 {[%clk 0:02:59]}  Nxd5 {[%clk 0:02:59]} 8. Nc3 {[%clk 0:02:58]}  Nc6 {[%clk 0:02:54]} 9. Nxd5 {[%clk 0:02:50]}  Qxd5 {[%clk 0:02:54]} 10. Bb2 {[%clk 0:02:49]}  Qd6 {[%clk 0:02:53]} 11. Rc1 {[%clk 0:02:38]}  Rd8 {[%clk 0:02:47]} 12. Qc2 {[%clk 0:02:37]}  b6 {[%clk 0:02:39]} 13. d4 {[%clk 0:02:32]}  Bb7 {[%clk 0:02:29]} 14. Rfd1 {[%clk 0:02:13]}  Nb4 {[%clk 0:01:47]} 15. Qb1 {[%clk 0:02:05]}  Qb8 {[%clk 0:01:47]} 16. dxc5 {[%clk 0:01:54]}  Bxc5 {[%clk 0:01:48]} 17. Ng5 {[%clk 0:01:54]}  Rxd1+ {[%clk 0:01:31]} 18. Rxd1 {[%clk 0:01:55]}  g6 {[%clk 0:01:16]} 19. Rd7 {[%clk 0:01:39]}  Bxg2 {[%clk 0:01:14]} 20. Rxf7 {[%clk 0:01:37]}  Bh3 {[%clk 0:00:33]} 21. Rg7+ {[%clk 0:01:06]}  Kf8 {[%clk 0:00:33]} 22. Nxh7+ {[%clk 0:01:06]}  Ke8 {[%clk 0:00:33]} 23. Qxg6+ {[%clk 0:01:06]}  Kd8 {[%clk 0:00:33]} 24. Bf6+ {[%clk 0:01:05]}  Kc8 {[%clk 0:00:33]} 25. Qe8# {[%clk 0:01:05]} 1-0


[Site "https://www.chess.com"]

[Event "Titled Tuesday Blitz September 14 2021"]
[White "Visakh N R"]
[Black "Mortazavi, Ali"]
[WhiteFideId "25012223"]
[BlackFideId "401323"]
[WhiteElo "2454"]
[BlackElo "2339"]
[Result "0-1"]
[Round "05"]
[TimeControl "180+1"]
[Date "2021.09.15"]
[WhiteClock "0:00:02"]
[BlackClock "0:00:07"]

1. d4 {[%clk 0:02:20]}  Nf6 {[%clk 0:02:55]} 2. c4 {[%clk 0:02:05]}  g6 {[%clk 0:02:53]} 3. Nc3 {[%clk 0:02:03]}  Bg7 {[%clk 0:02:54]} 4. e4 {[%clk 0:02:03]}  O-O {[%clk 0:02:55]} 5. f3 {[%clk 0:02:01]}  d6 {[%clk 0:02:55]} 6. Be3 {[%clk 0:02:01]}  a6 {[%clk 0:02:55]} 7. Qd2 {[%clk 0:01:58]}  Nc6 {[%clk 0:02:52]} 8. Nge2 {[%clk 0:01:53]}  b5 {[%clk 0:02:52]} 9. cxb5 {[%clk 0:01:48]}  axb5 {[%clk 0:02:52]} 10. Nxb5 {[%clk 0:01:49]}  Na5 {[%clk 0:02:53]} 11. Nc1 {[%clk 0:01:42]}  c6 {[%clk 0:02:50]} 12. Nc3 {[%clk 0:01:40]}  Ba6 {[%clk 0:02:45]} 13. Bxa6 {[%clk 0:01:38]}  Rxa6 {[%clk 0:02:45]} 14. O-O {[%clk 0:01:38]}  Nc4 {[%clk 0:02:39]} 15. Qe2 {[%clk 0:01:36]}  Nxe3 {[%clk 0:02:39]} 16. Qxa6 {[%clk 0:01:35]}  Nxf1 {[%clk 0:02:39]} 17. Kxf1 {[%clk 0:01:35]}  Nd7 {[%clk 0:01:58]} 18. Nb3 {[%clk 0:01:29]}  c5 {[%clk 0:01:28]} 19. dxc5 {[%clk 0:01:16]}  Bxc3 {[%clk 0:01:25]} 20. bxc3 {[%clk 0:01:16]}  dxc5 {[%clk 0:01:25]} 21. Rd1 {[%clk 0:01:08]}  Qc7 {[%clk 0:01:25]} 22. Qa5 {[%clk 0:01:01]}  Qc6 {[%clk 0:01:06]} 23. Qa7 {[%clk 0:00:48]}  Ne5 {[%clk 0:00:54]} 24. Qxe7 {[%clk 0:00:28]}  Nc4 {[%clk 0:00:35]} 25. Kf2 {[%clk 0:00:17]}  Qa4 {[%clk 0:00:35]} 26. Rd8 {[%clk 0:00:12]}  Qxa2+ {[%clk 0:00:35]} 27. Kg3 {[%clk 0:00:12]}  Rxd8 {[%clk 0:00:35]} 28. Qxd8+ {[%clk 0:00:13]}  Kg7 {[%clk 0:00:35]} 29. Nxc5 {[%clk 0:00:13]}  Qe2 {[%clk 0:00:32]} 30. Qd4+ {[%clk 0:00:13]}  Kh6 {[%clk 0:00:31]} 31. Nd3 {[%clk 0:00:14]}  Ne3 {[%clk 0:00:30]} 32. Nf2 {[%clk 0:00:11]}  f5 {[%clk 0:00:24]} 33. Qd3 {[%clk 0:00:06]}  Nf1+ {[%clk 0:00:21]} 34. Kf4 {[%clk 0:00:05]}  Qxf2 {[%clk 0:00:21]} 35. exf5 {[%clk 0:00:05]}  g5+ {[%clk 0:00:20]} 36. Ke5 {[%clk 0:00:05]}  Qxg2 {[%clk 0:00:20]} 37. Kf6 {[%clk 0:00:03]}  Nxh2 {[%clk 0:00:15]} 38. Kf7 {[%clk 0:00:03]}  Nxf3 {[%clk 0:00:14]} 39. Kg8 {[%clk 0:00:03]}  Ne5 {[%clk 0:00:13]} 40. Qd6+ {[%clk 0:00:03]}  Ng6 {[%clk 0:00:07]} 41. fxg6 {[%clk 0:00:03]}  hxg6 {[%clk 0:00:08]} 42. Kf7 {[%clk 0:00:02]}  Qb7+ {[%clk 0:00:08]} 43. Kf6 {[%clk 0:00:01]}  Qf3+ {[%clk 0:00:08]} 44. Ke7 {[%clk 0:00:01]}  Qxc3 {[%clk 0:00:08]} 45. Qh2+ {[%clk 0:00:01]}  Kg7 {[%clk 0:00:07]} 46. Qf2 {[%clk 0:00:01]}  Qe5+ {[%clk 0:00:07]} 47. Kd7 {[%clk 0:00:02]}  Qf5+ {[%clk 0:00:07]} 0-1


[Site "https://www.chess.com"]

[Event "Titled Tuesday Blitz September 14 2021"]
[White "Yoo, Christopher Woojin"]
[Black "FarOut1364"]
[WhiteFideId "30909694"]
[WhiteElo "2105"]
[BlackElo "2726"]
[Result "0-1"]
[Round "05"]
[TimeControl "180+1"]
[Date "2021.09.15"]
[WhiteClock "0:00:02"]
[BlackClock "0:00:11"]

1. e4 {[%clk 0:01:39]}  e6 {[%clk 0:02:58]} 2. d4 {[%clk 0:01:39]}  d5 {[%clk 0:02:58]} 3. Bd3 {[%clk 0:01:39]}  dxe4 {[%clk 0:02:56]} 4. Bxe4 {[%clk 0:01:40]}  Nf6 {[%clk 0:02:56]} 5. Bf3 {[%clk 0:01:38]}  c5 {[%clk 0:02:56]} 6. Ne2 {[%clk 0:01:37]}  Nc6 {[%clk 0:02:56]} 7. Be3 {[%clk 0:01:37]}  Be7 {[%clk 0:02:37]} 8. O-O {[%clk 0:01:36]}  cxd4 {[%clk 0:02:17]} 9. Nxd4 {[%clk 0:01:31]}  Ne5 {[%clk 0:02:17]} 10. Nc3 {[%clk 0:01:31]}  O-O {[%clk 0:02:16]} 11. Qe2 {[%clk 0:01:30]}  Nxf3+ {[%clk 0:02:13]} 12. Qxf3 {[%clk 0:01:30]}  Nd5 {[%clk 0:01:54]} 13. Nxd5 {[%clk 0:01:27]}  Qxd5 {[%clk 0:01:55]} 14. Qxd5 {[%clk 0:01:26]}  exd5 {[%clk 0:01:56]} 15. Rad1 {[%clk 0:01:26]}  Be6 {[%clk 0:01:52]} 16. c3 {[%clk 0:01:24]}  a6 {[%clk 0:01:52]} 17. Rfe1 {[%clk 0:01:24]}  Rfe8 {[%clk 0:01:50]} 18. f3 {[%clk 0:01:23]}  Bf6 {[%clk 0:01:50]} 19. Nb3 {[%clk 0:01:20]}  b5 {[%clk 0:01:29]} 20. Nc5 {[%clk 0:01:18]}  Be7 {[%clk 0:01:27]} 21. Nd3 {[%clk 0:01:15]}  Bd6 {[%clk 0:01:14]} 22. Bf4 {[%clk 0:01:14]}  Bf8 {[%clk 0:01:14]} 23. Be5 {[%clk 0:01:11]}  f6 {[%clk 0:01:13]} 24. Bd4 {[%clk 0:01:03]}  Bf5 {[%clk 0:01:11]} 25. Nf4 {[%clk 0:00:57]}  Rxe1+ {[%clk 0:01:06]} 26. Rxe1 {[%clk 0:00:57]}  Rd8 {[%clk 0:01:05]} 27. g4 {[%clk 0:00:57]}  Bc8 {[%clk 0:01:03]} 28. Nd3 {[%clk 0:00:56]}  Kf7 {[%clk 0:00:55]} 29. h3 {[%clk 0:00:46]}  h5 {[%clk 0:00:51]} 30. Kg2 {[%clk 0:00:44]}  hxg4 {[%clk 0:00:51]} 31. hxg4 {[%clk 0:00:44]}  Be6 {[%clk 0:00:48]} 32. Bc5 {[%clk 0:00:42]}  d4 {[%clk 0:00:36]} 33. Bxf8 {[%clk 0:00:41]}  dxc3 {[%clk 0:00:27]} 34. Nc5 {[%clk 0:00:17]}  Rd2+ {[%clk 0:00:26]} 35. Kg3 {[%clk 0:00:15]}  c2 {[%clk 0:00:19]} 36. Rc1 {[%clk 0:00:06]}  Bxa2 {[%clk 0:00:19]} 37. Bxg7 {[%clk 0:00:02]}  Kxg7 {[%clk 0:00:16]} 38. Ne4 {[%clk 0:00:02]}  Re2 {[%clk 0:00:16]} 39. Nc3 {[%clk 0:00:03]}  Rd2 {[%clk 0:00:11]} 40. Nxa2 {[%clk 0:00:03]}  a5 {[%clk 0:00:12]} 41. Nc3 {[%clk 0:00:03]}  b4 {[%clk 0:00:12]} 42. Na4 {[%clk 0:00:03]}  b3 {[%clk 0:00:12]} 43. Nc5 {[%clk 0:00:03]}  a4 {[%clk 0:00:11]} 44. Kf4 {[%clk 0:00:02]}  Rd1 {[%clk 0:00:11]} 0-1


[Site "https://www.chess.com"]